bitfinex-derivatives/quotes_ETHF0:USTF0_20250411
["timestamp","ask_amount","ask_price","bid_price","bid_amount"]
[1744366663525,10.27523269,1560.4,1560.3,5.43937632]
[1744366663726,1.28254,1560.3,1560.2,1.28255]
[1744366663927,4.46604,1560.3,1560.2,2.20966128]
[1744366664338,3.1835,1560.3,1560.2,2.20966128]
[1744366664636,4.46604,1560.3,1560.2,1.28255]
[1744366664934,4.46604,1560.3,1560.2,2.20976338]
[1744366666139,4.46604,1560.3,1560.2,1.28263]
[1744366666336,10.45038269,1560.3,1560.2,2.18833487]
[1744366666527,10.45038269,1560.3,1560.2,2.18833469]
[1744366666727,10.45038269,1560.3,1560.2,1.28263]
[1744366667245,10.45038269,1560.3,1560.2,2.18842546]
[1744366667430,10.45038269,1560.3,1560.2,1.28263]
[1744366668134,1.28271,1560.1,1560.0,2.28172]
[1744366668334,1.28271,1560.1,1560.0,3.18758639]
[1744366668628,3.97771,1560.1,1560.0,3.18758639]
[1744366668824,7.09681,1560.1,1560.0,3.18758639]
[1744366669738,7.09681,1560.1,1560.0,6.13088639]
[1744366670433,5.8141,1560.1,1560.0,6.13088639]
[1744366670634,1.28271,1560.1,1560.0,6.13089639]
[1744366670840,4.29881,1560.1,1560.0,3.18759639]
[1744366671333,4.29881,1560.1,1560.0,1.90486639]
[1744366671537,9.29881,1560.1,1560.0,0.999]
[1744366672742,4.29881,1560.1,1560.0,0.999]
[1744366672943,4.29881,1560.1,1560.0,2.28179]
[1744366673234,3.0161,1560.1,1560.0,2.28179]
[1744366673436,3.0161,1560.1,1560.0,6.37715002]
[1744366673637,6.59114,1560.2,1560.1,1.28271]
[1744366673827,9.77394,1560.2,1560.1,4.28581]
[1744366674031,9.77394,1560.2,1560.1,5.17331541]
[1744366674232,5.7922,1560.2,1560.1,5.17331541]
[1744366674732,7.07483,1560.2,1560.1,5.17331541]
[1744366675540,7.07483,1560.2,1560.1,5.17327785]
[1744366675941,5.7922,1560.2,1560.1,5.17327785]
[1744366676544,26.41593376,1560.5,1560.4,1.28246]
[1744366676840,29.52713376,1560.5,1560.4,1.28246]
[1744366677842,28.24469376,1560.5,1560.4,3.16872294]
[1744366678043,12.58357512,1560.5,1560.4,3.16872294]
[1744366678440,12.58357512,1560.5,1560.4,6.37652294]
[1744366678741,13.86595512,1560.5,1560.4,6.37652294]
[1744366678943,13.86595512,1560.5,1560.4,47.17652294]
[1744366679140,13.86595512,1560.5,1560.4,43.08146]
[1744366679344,16.89465512,1560.5,1560.4,41.799]
[1744366679537,16.89465512,1560.5,1560.4,43.08146]
[1744366680339,15.61227512,1560.5,1560.4,43.96487849]
[1744366680536,12.58357512,1560.5,1560.4,43.96487849]
[1744366680735,12.58357512,1560.5,1560.4,47.17267849]
[1744366681142,13.86595512,1560.5,1560.4,43.96487849]
[1744366681342,13.86595512,1560.5,1560.4,43.08146]
[1744366681848,16.85915512,1560.5,1560.4,43.08146]
[1744366682047,12.78645106,1560.5,1560.4,43.08146]
[1744366682545,12.78645106,1560.5,1560.4,46.17126]
[1744366682742,12.78645106,1560.5,1560.4,41.799]
[1744366683141,12.78645106,1560.5,1560.4,2.28146]
[1744366684749,12.78645106,1560.5,1560.4,0.999]
[1744366684950,15.30280486,1560.5,1560.4,0.999]
[1744366686344,11.02722486,1560.5,1560.4,5.48926]
[1744366686649,11.02722486,1560.5,1560.4,52.79744283]
[1744366686841,11.02722486,1560.5,1560.4,49.58964283]
[1744366687148,11.02722486,1560.5,1560.4,52.79744283]
[1744366688336,10.06541518,1560.5,1560.4,62.51833333]
[1744366688538,12.13398639,1560.8,1560.5,4.48827]
[1744366688743,10.22979412,1560.8,1560.7,4.49001]
[1744366688945,10.22979412,1560.8,1560.7,10.09428333]
[1744366689143,10.22979412,1560.8,1560.7,15.75388333]
[1744366689354,10.22979412,1560.8,1560.7,62.02688922]
[1744366690248,10.22979412,1560.8,1560.7,62.02560359]
[1744366690755,10.22979412,1560.8,1560.7,53.9711977]
[1744366691049,10.22979412,1560.8,1560.7,60.44580041]
[1744366691443,10.22979412,1560.8,1560.7,59.9701977]
[1744366691649,10.22979412,1560.8,1560.7,62.6864977]
[1744366692050,10.22979412,1560.8,1560.7,57.6864977]
[1744366693457,10.22979412,1560.8,1560.7,62.6864977]
[1744366693658,4.43169,1561.1,1561.0,1.28197]
[1744366693858,4.43169,1561.1,1561.0,2.28097]
[1744366695050,4.43169,1561.1,1561.0,0.999]
[1744366696249,3.1498,1561.1,1561.0,2.28097]
[1744366696655,4.43169,1561.1,1561.0,0.999]
[1744366696856,4.43169,1561.1,1561.0,2.28097]
[1744366697155,3.1498,1561.1,1561.0,2.28097]
[1744366697867,4.43169,1561.1,1561.0,2.28097]
[1744366698063,4.43169,1561.1,1561.0,0.999]
[1744366698263,4.43169,1561.1,1561.0,2.28097]
[1744366698757,2.5738,1561.2,1561.1,1.28189]
[1744366699059,6.9001,1561.2,1561.1,1.28189]
[1744366699557,5.6183,1561.2,1561.1,1.28189]
[1744366699761,5.6183,1561.2,1561.0,6.99891]
[1744366699949,4.35779,1561.1,1561.0,6.99891]
[1744366700154,4.35779,1561.1,1561.0,2.28091]
[1744366701263,4.35779,1561.1,1561.0,0.999]
[1744366701463,4.35779,1561.1,1561.0,2.28097]
[1744366702461,9.35779,1561.1,1561.0,0.999]
[1744366703259,9.35779,1561.1,1561.0,2.28097]
[1744366703453,3.0759,1561.1,1561.0,2.28097]
[1744366703964,3.0759,1561.1,1561.0,5.17167]
[1744366704865,4.35779,1561.1,1561.0,5.17167]
[1744366705069,4.35779,1561.1,1561.0,2.28097]
[1744366705265,4.35779,1561.1,1561.0,5.17167]
[1744366706065,3.0759,1561.1,1561.0,8.37947]
[1744366706265,4.35779,1561.1,1561.0,2.28097]
[1744366706768,3.85566,1561.2,1561.1,1.28189]
[1744366706960,3.85566,1561.2,1561.1,4.16849]
[1744366707565,1.28189,1561.1,1561.0,5.48873]
[1744366707769,4.23359,1561.1,1561.0,0.999]
[1744366708268,5.02555445,1561.4,1561.0,10.08800734]
[1744366708459,5.02555445,1561.4,1561.3,4.48952]
[1744366708666,5.02555445,1561.4,1561.3,5.37065048]
[1744366709372,3.53845445,1561.4,1561.3,11.85430679]
[1744366709668,3.53845445,1561.4,1561.3,11.36965048]
[1744366709863,2.01365445,1561.4,1561.3,54.64995048]
[1744366710059,2.01365445,1561.6,1561.5,1.28156]
[1744366710267,2.01365445,1561.6,1561.5,3.16169048]
[1744366710470,6.42713445,1561.6,1561.5,2.28056]
[1744366710670,6.42713445,1561.6,1561.5,43.08056]
[1744366710869,6.42713445,1561.6,1561.5,44.00399677]
[1744366711067,6.42713445,1561.6,1561.5,42.72243677]
[1744366711375,5.14565445,1561.6,1561.5,46.28836]
[1744366711673,2.01365445,1561.6,1561.5,50.07790026]
[1744366712879,2.01365445,1561.6,1561.5,50.07771961]
[1744366713168,4.97115445,1561.6,1561.5,50.07771961]
[1744366713671,2.01365445,1561.6,1561.5,50.07766472]
[1744366713873,2.01365445,1561.6,1561.5,54.79466472]
[1744366715270,5.5806,1561.7,1561.6,1.28148]
[1744366715772,5.5806,1561.7,1561.6,2.20456284]
[1744366715974,5.5806,1561.7,1561.6,5.16146284]
[1744366716171,5.5806,1561.7,1561.6,5.16178346]
[1744366716573,3.77061,1561.8,1561.7,1.28139]
[1744366716873,2.4893,1561.8,1561.7,1.28139]
[1744366717171,2.7014,1562.0,1561.9,1.28123]
[1744366717172,3.98262,1562.0,1561.9,1.28123]
[1744366717373,6.47862,1562.0,1561.9,2.28023]
[1744366717877,6.47862,1562.0,1561.9,0.999]
[1744366718064,11.47862,1562.0,1561.9,0.999]
[1744366718772,7.53833168,1562.3,1562.2,1.28098]
[1744366718970,7.53833168,1562.3,1562.2,4.48878]
[1744366719674,5.1959,1562.4,1562.3,1.2809]
[1744366719873,2.4945,1562.4,1562.3,5.3519]
[1744366720270,2.4945,1562.4,1562.3,2.2799]
[1744366720666,2.4945,1562.4,1562.3,5.3519]
[1744366720969,7.53833168,1562.5,1562.4,1.28082]
[1744366721177,7.53833168,1562.5,1562.4,7.45172]
[1744366721370,7.53833168,1562.5,1562.4,4.48862]
[1744366721670,7.53833168,1562.5,1562.4,1.28082]
[1744366721979,8.81907168,1562.5,1562.3,12.47724]
[1744366722366,8.81907168,1562.5,1562.4,1.28082]
[1744366722565,7.53833168,1562.5,1562.4,4.24392]
[1744366722762,7.53833168,1562.5,1562.4,7.45172]
[1744366723077,8.81907168,1562.5,1562.4,7.45172]
[1744366723380,15.74613168,1562.5,1562.1,1.29065892]
[1744366723673,1.28098,1562.2,1562.1,0.00960892]
[1744366724173,1.28098,1562.2,1562.1,1.29067892]
[1744366724369,1.28098,1562.2,1562.1,4.21227892]
[1744366724968,1.28098,1562.2,1562.1,0.00960892]
[1744366726680,1.28098,1562.2,1562.1,1.29067892]
[1744366727272,1.28098,1562.2,1562.1,4.34247892]
[1744366727473,6.70888,1562.4,1562.3,1.2809]
[1744366727873,1.28088,1562.4,1562.3,1.2809]
[1744366728180,1.28082,1562.4,1562.3,2.27983]
[1744366728380,1.28082,1562.4,1562.3,5.33163]
[1744366729078,1.28082,1562.4,1562.3,0.999]
[1744366729384,8.82912,1562.4,1562.3,0.999]
[1744366730378,7.5483,1562.4,1562.1,0.00960892]
[1744366730582,4.48878,1562.2,1562.1,0.00960892]
[1744366730885,9.36378,1562.2,1562.1,0.00960892]
[1744366731088,14.36378,1562.2,1562.1,0.00960892]
[1744366731383,9.48878,1562.2,1562.1,0.00960892]
[1744366732183,4.48878,1562.2,1562.1,0.00960892]
[1744366732880,9.48878,1562.2,1562.1,8.92e-06]
[1744366733476,14.36378,1562.2,1562.1,8.92e-06]
[1744366733681,11.94768,1562.2,1562.1,8.92e-06]
[1744366736087,16.94768,1562.2,1562.1,8.92e-06]
[1744366736785,14.94058,1562.2,1562.1,8.92e-06]
[1744366737387,19.94058,1562.2,1562.1,8.92e-06]
[1744366743687,1.28165,1561.4,1561.3,3.1301]
[1744366744076,4.43105,1561.4,1561.3,8.1301]
[1744366744776,4.43105,1561.4,1561.2,4.02885]
[1744366744777,1.28173,1561.3,1561.2,0.00960892]
[1744366744979,7.63893,1561.3,1561.2,0.00960892]
[1744366746987,1.28173,1561.3,1561.2,0.00960892]
[1744366747186,0.0095029,1561.5,1561.4,1.28165]
[1744366747384,1.2910629,1561.5,1561.4,1.28165]
[1744366747689,0.0095029,1561.5,1561.4,7.73115]
[1744366748579,0.0095029,1561.5,1561.4,12.73115]
[1744366748888,0.0095029,1561.5,1561.4,13.63189062]
[1744366749489,0.0095029,1561.5,1561.4,54.43189062]
[1744366750883,7.53833168,1562.0,1561.9,1.28124]
[1744366751187,7.53833168,1562.0,1561.9,5.38992469]
[1744366751378,8.81938168,1562.2,1562.1,1.28107]
[1744366751581,7.53833168,1562.2,1562.1,1.28107]
[1744366751882,7.53833168,1562.2,1562.1,10.39001676]
[1744366752188,7.53833168,1562.2,1562.1,9.48887]
[1744366752589,7.53833168,1562.2,1562.1,13.52924573]
[1744366752784,7.53833168,1562.2,1562.1,8.52924573]
[1744366752992,7.53833168,1562.2,1562.1,7.62797]
[1744366753188,7.53833168,1562.2,1562.1,8.52958881]
[1744366753687,7.53833168,1562.2,1562.1,7.62797]
[1744366754383,7.53833168,1562.2,1562.1,8.52940942]
[1744366755091,1.28093,1562.3,1562.2,1.28099]
[1744366755293,1.28093,1562.3,1562.2,4.37139]
[1744366755494,3.2078,1562.5,1562.2,4.37139]
[1744366755791,1.28091,1562.3,1562.2,4.37139]
[1744366756187,1.28089,1562.4,1562.3,1.2809]
[1744366756489,1.28073,1562.6,1562.5,1.28073]
[1744366757179,1.28075,1562.5,1562.4,3.0904]
[1744366757794,1.28075,1562.5,1562.4,43.8904]
[1744366758189,4.48855,1562.5,1562.4,40.8]
[1744366758397,1.28091,1562.3,1562.2,7.09549]
[1744366758595,4.28289,1562.4,1562.3,1.28091]
[1744366759391,1.28089,1562.4,1562.3,1.28091]
[1744366759596,2.68,1562.5,1562.4,1.28083]
[1744366759597,1.28081,1562.5,1562.4,1.28083]
[1744366759798,1.28081,1562.5,1562.4,4.34483]
[1744366761395,1.2807,1562.6,1562.5,1.28067]
[1744366761899,1.28075,1562.5,1562.4,4.34477]
[1744366762598,1.28075,1562.5,1562.4,3.064]
[1744366762990,1.28075,1562.5,1562.4,4.34483]
[1744366763597,10.74613168,1563.0,1562.5,3.20183]
[1744366763897,8.81866168,1563.0,1562.9,1.28042]
[1744366764098,7.53833168,1563.0,1562.9,1.28042]
[1744366764292,7.53833168,1563.0,1562.9,4.50822]
[1744366764795,8.81866168,1563.0,1562.9,3.2278]
[1744366764997,7.53833168,1563.0,1562.9,4.50822]
[1744366765191,9.97845179,1563.1,1562.9,8.2278]
[1744366765402,7.41813108,1563.1,1563.0,10.20316336]
[1744366765595,17.48978865,1563.5,1563.1,1.28025]
[1744366765796,19.70267676,1563.8,1563.7,1.27976]
[1744366765988,19.70267676,1563.8,1563.6,6.09581]
[1744366766191,19.70267676,1563.8,1563.6,4.82560892]
[1744366766395,20.98240676,1563.8,1563.7,40.8]
[1744366766600,24.01960676,1563.8,1563.7,40.8]
[1744366766898,19.70267676,1563.8,1563.7,50.28756]
[1744366767088,19.70267676,1563.8,1563.7,55.99732456]
[1744366767296,21.67618838,1563.9,1563.8,1.27968]
[1744366767599,1.27973,1563.8,1563.6,0.00960892]
[1744366767796,4.48756,1563.7,1563.6,0.00960892]
[1744366768296,10.12756,1563.7,1563.6,8.92e-06]
[1744366768501,12.69146,1563.7,1563.6,8.92e-06]
[1744366768702,15.18276,1563.7,1563.6,8.92e-06]
[1744366768898,10.18276,1563.7,1563.6,8.92e-06]
[1744366769605,15.18276,1563.7,1563.6,8.92e-06]
[1744366771107,19.99776,1563.7,1563.6,8.92e-06]
[1744366772006,11.97496,1563.7,1563.6,8.92e-06]
[1744366772306,10.18276,1563.7,1563.6,8.92e-06]
[1744366772707,15.18276,1563.7,1563.6,8.92e-06]
[1744366773005,10.18276,1563.7,1563.6,8.92e-06]
[1744366773502,6.97496,1563.7,1563.6,8.92e-06]
[1744366773704,3.1313,1563.7,1563.6,8.92e-06]
[1744366774100,0.00959999,1563.8,1563.7,1.27976]
[1744366774305,0.00959999,1563.8,1563.7,4.31026]
[1744366774602,0.00959999,1563.8,1563.7,9.31026]
[1744366775106,0.00959999,1563.8,1563.7,12.51806]
[1744366775501,0.00959999,1563.8,1563.7,53.31806]
[1744366775801,0.00959999,1563.8,1563.7,53.31805]
[1744366776704,3.16549999,1563.8,1563.7,53.31805]
[1744366776905,3.16549999,1563.8,1563.7,47.0383]
[1744366777103,0.00959999,1563.8,1563.7,53.31805]
[1744366777303,0.00959999,1563.8,1563.7,48.31805]
[1744366777507,3.16549999,1563.8,1563.7,45.28755]
[1744366777809,0.00959999,1563.8,1563.7,40.8]
[1744366778004,4.44516999,1563.8,1563.7,44.0078]
[1744366778308,0.00959999,1563.8,1563.7,50.28755]
[1744366778606,0.00959999,1563.8,1563.7,48.47035]
[1744366778807,1.28926999,1563.8,1563.7,44.0078]
[1744366779010,4.51466999,1563.8,1563.7,40.8]
[1744366779709,1.27975,1563.7,1563.6,8.92e-06]
[1744366779912,9.75375,1563.7,1563.6,8.92e-06]
[1744366782004,1.28025,1563.1,1563.0,3.2078]
[1744366782311,1.28015,1563.3,1563.2,1.28016]
[1744366782517,1.28016,1563.2,1563.1,4.33369]
[1744366782706,3.1261,1563.4,1563.1,4.33369]
[1744366782707,1.28015,1563.3,1563.1,1.28019]
[1744366782907,1.28016,1563.2,1563.1,1.28019]
[1744366783104,1.28015,1563.3,1563.2,1.28016]
[1744366783318,1.28015,1563.3,1563.2,4.48796]
[1744366783818,6.32613,1563.4,1563.0,10.44573449]
[1744366784008,1.28025,1563.1,1563.0,9.54968892]
[1744366784315,1.28005,1563.4,1563.3,1.28007]
[1744366784612,3.1261,1563.5,1563.4,1.28]
[1744366784816,0.00959999,1563.8,1563.4,8.2598]
[1744366785114,0.00959999,1563.8,1563.7,1.27975]
[1744366785313,0.00959999,1563.8,1563.6,4.48758]
[1744366785510,1.28930999,1563.8,1563.7,1.27975]
[1744366785816,0.00959999,1563.8,1563.7,2.1765844]
[1744366786115,0.00959999,1563.8,1563.7,7.1765844]
[1744366786310,0.00959999,1563.8,1563.7,12.2285844]
[1744366786811,3.0676,1564.4,1564.3,1.27926]
[1744366787020,1.27908,1564.6,1564.4,0.01302017]
[1744366787318,3.0676,1564.6,1564.5,1.2791]
[1744366787513,6.40454,1565.0,1564.6,1.27894]
[1744366787720,1.27888,1564.8,1564.7,1.27893]
[1744366787923,10.8031,1565.2,1564.6,0.00960892]
[1744366788113,1.26591983,1564.7,1564.6,0.00960892]
[1744366788420,1.28249125,1564.6,1564.4,6.33114]
[1744366788613,1.28249125,1564.6,1564.4,6.33112]
[1744366788814,1.27908,1564.6,1564.4,6.32770875]
[1744366789009,1.27918,1564.4,1564.3,3.2078]
[1744366789214,1.27918,1564.4,1564.3,4.10408172]
[1744366789410,1.27926,1564.3,1564.2,5.06160892]
[1744366789610,1.27926,1564.3,1564.2,0.00960892]
[1744366790117,6.27926,1564.3,1564.2,0.00960892]
[1744366790313,1.27926,1564.3,1564.2,0.00960892]
[1744366790710,4.28656,1564.3,1564.2,0.00960892]
[1744366791107,9.28656,1564.3,1564.2,0.00960892]
[1744366791820,1.27951,1564.0,1563.9,3.2078]
[1744366792118,1.27967,1563.8,1563.7,50.3395]
[1744366792417,1.27967,1563.8,1563.7,51.23802001]
[1744366792720,1.27967,1563.8,1563.7,49.95832001]
[1744366793017,1.27967,1563.8,1563.7,41.69852001]
[1744366793322,1.27967,1563.8,1563.7,0.89852001]
[1744366793708,1.27967,1563.8,1563.7,41.69852001]
[1744366794018,3.95677,1563.8,1563.7,42.97827001]
[1744366794419,3.95677,1563.8,1563.7,41.69852001]
[1744366794717,3.95677,1563.8,1563.7,41.7001374]
[1744366794913,3.95677,1563.8,1563.7,42.9798874]
[1744366795110,3.95677,1563.8,1563.7,46.1876874]
[1744366795427,2.6771,1563.8,1563.7,5.3876874]
[1744366795620,3.2487,1563.9,1563.8,1.27967]
[1744366795918,1.27932,1564.3,1564.2,1.27935]
[1744366796108,1.27932,1564.3,1564.2,0.9001374]
[1744366796309,4.45634,1564.4,1564.3,1.27926]
[1744366796507,1.2793,1564.3,1564.2,1.27929]
[1744366796712,3.1771,1564.3,1564.2,2.17927022]
[1744366796922,4.45636,1564.3,1564.2,2.17927022]
[1744366797814,0.00960892,1564.5,1564.4,1.27918]
[1744366798021,0.00960892,1564.5,1564.4,2.17916022]
[1744366798317,0.00960892,1564.5,1564.4,5.38486022]
[1744366798819,4.41300892,1564.5,1564.4,2.17916022]
[1744366799017,4.41300892,1564.5,1564.4,0.89998022]
[1744366800121,1.27933,1564.3,1564.2,1.27933]
[1744366800421,1.27926,1564.3,1564.2,2.17885947]
[1744366800617,1.27926,1564.3,1564.2,0.89950947]
[1744366800918,1.27951,1564.0,1563.9,4.48736]
[1744366801119,3.2258,1564.3,1563.9,7.30640221]
[1744366801324,3.2258,1564.2,1564.1,1.27943]
[1744366801516,3.2258,1564.2,1564.1,5.38688221]
[1744366801909,2.6898,1564.4,1564.3,1.27926]
[1744366802117,0.00960892,1564.5,1564.4,1.27918]
[1744366802314,0.00960892,1564.5,1564.4,5.344828]
[1744366802814,1.28870892,1564.5,1564.4,2.179028]
[1744366803014,0.00960892,1564.5,1564.4,2.179028]
[1744366803326,4.51450892,1564.5,1564.4,0.899848]
[1744366803714,4.51450892,1564.5,1564.4,2.179028]
[1744366804018,4.51450892,1564.5,1564.4,2.1750146]
[1744366804409,3.23540892,1564.5,1564.4,2.1750146]
[1744366804721,3.23540892,1564.5,1564.4,5.3180146]
[1744366804722,4.51450892,1564.5,1564.4,5.3180146]
[1744366804921,4.51450892,1564.5,1564.4,2.1750146]
[1744366805122,1.2791,1564.5,1564.4,2.1750146]
[1744366805317,1.2791,1564.5,1564.4,0.8958346]
[1744366805817,1.27935,1564.2,1564.1,3.2078]
[1744366806121,5.4078,1564.7,1564.6,1.27902]
[1744366806422,5.4078,1564.7,1564.5,3.2078]
[1744366806620,1.27902,1564.6,1564.5,7.52350892]
[1744366806917,5.4078,1564.7,1564.6,1.27902]
[1744366807126,0.00960892,1564.8,1564.7,1.27894]
[1744366807319,1.28845892,1564.8,1564.7,6.2348]
[1744366807522,0.00960892,1564.8,1564.7,3.2078]
[1744366807820,0.00960892,1564.8,1564.5,3.03660892]
[1744366808023,0.00960892,1564.8,1564.7,1.27894]
[1744366808225,0.00960892,1564.8,1564.7,2.17384986]
[1744366808425,0.00960892,1564.8,1564.7,5.20084986]
[1744366808722,0.00960892,1564.8,1564.7,5.20050435]
[1744366809222,1.28845892,1564.8,1564.7,4.30594]
[1744366809416,0.00960892,1564.8,1564.7,5.2003428]
[1744366809723,0.00960892,1564.8,1564.7,15.3903428]
[1744366810123,0.00960892,1564.8,1564.7,56.1903428]
[1744366810427,0.00960892,1564.8,1564.7,51.1903428]
[1744366811723,1.28845892,1564.8,1564.7,46.8844028]
[1744366811926,0.00960892,1564.8,1564.7,48.1633428]
[1744366812112,0.00960892,1564.8,1564.7,46.1047428]
[1744366812817,12.3594523,1566.2,1564.7,46.1047428]
[1744366812818,6.40336,1565.6,1564.9,3.19687]
[1744366813026,3.04397983,1565.4,1565.3,1.27845]
[1744366813417,3.04397983,1565.4,1565.2,4.25017]
[1744366813724,3.04397983,1565.4,1564.9,3.19677]
[1744366813725,3.19633,1565.2,1564.9,3.2078]
[1744366813919,1.27869,1565.0,1564.9,3.2078]
[1744366814121,1.27869,1565.0,1564.9,3.21740892]
[1744366814316,3.2078,1565.3,1564.9,3.21740892]
[1744366814521,3.19612,1565.3,1564.9,3.21740892]
[1744366814825,1.27869,1565.0,1564.9,4.49609892]
[1744366815025,1.27867,1565.1,1565.0,1.27866]
[1744366816019,1.27869,1565.0,1564.9,3.21740892]
[1744366816226,4.27259,1565.0,1564.9,4.49617892]
[1744366816926,4.27259,1565.0,1564.9,0.00960892]
[1744366817125,1.27885,1564.8,1564.7,0.8041]
[1744366817319,1.27885,1564.8,1564.7,0.79107983]
[1744366818422,9.48665,1564.8,1564.7,0.79107983]
[1744366819019,1.27885,1564.8,1564.7,0.79107983]
[1744366819729,1.27885,1564.8,1564.7,2.07001983]
[1744366820128,3.00350892,1564.9,1564.8,1.27885]
[1744366820321,4.00745,1565.0,1564.9,0.00341125]
[1744366820822,4.00745,1565.0,1564.7,13.73126983]
[1744366820823,1.27543875,1564.8,1564.7,13.73126983]
[1744366821019,1.27885,1564.8,1564.7,14.62592893]
[1744366821326,1.27885,1564.8,1564.7,5.98007983]
[1744366821527,1.27885,1564.8,1564.7,7.25901983]
[1744366821728,1.27885,1564.8,1564.7,5.98007983]
[1744366821925,1.27885,1564.8,1564.7,0.79107983]
[1744366822423,6.27885,1564.8,1564.7,0.79107983]
[1744366822824,1.27885,1564.8,1564.7,0.79107983]
[1744366823231,1.27885,1564.8,1564.7,2.07001983]
[1744366823529,4.00747,1565.0,1564.9,1.27877]
[1744366823719,1.27877,1564.9,1564.8,4.48659]
[1744366823920,1.27877,1564.9,1564.8,48.62479]
[1744366824426,3.80017,1565.1,1564.8,53.24169111]
[1744366824629,1.27867,1565.1,1565.0,1.27869]
[1744366825124,1.2786,1565.2,1565.1,1.27856]
[1744366825326,1.2786,1565.2,1565.1,4.31486]
[1744366825530,1.27839,1565.4,1565.3,1.27837]
[1744366825725,1.27845,1565.3,1565.2,7.52257]
[1744366825934,1.27845,1565.3,1565.2,13.60751431]
[1744366826123,1.27845,1565.3,1565.2,13.6075935]
[1744366826825,1.27845,1565.3,1565.2,8.3968]
[1744366827125,1.27853,1565.2,1565.1,1.2786]
[1744366827322,1.27853,1565.2,1565.1,2.17444155]
[1744366827522,1.27861,1565.1,1565.0,8.3958]
[1744366827723,2.7263,1565.3,1565.2,1.27853]
[1744366828030,4.00475,1565.3,1565.2,2.17452547]
[1744366828232,1.27853,1565.2,1565.1,3.2035]
[1744366828430,1.27853,1565.2,1565.1,5.37802331]
[1744366828629,4.00481,1565.3,1565.2,1.27853]
[1744366828835,1.27841,1565.4,1565.3,1.27845]
[1744366829025,1.27841,1565.4,1565.3,4.48195]
[1744366829435,1.27841,1565.4,1565.3,5.37747604]
[1744366829733,1.27841,1565.4,1565.3,10.56547604]
[1744366830031,1.27841,1565.4,1565.3,10.56545256]
[1744366830227,1.27835,1565.5,1565.4,1.27832]
[1744366830424,1.27814,1565.7,1565.6,1.27812]
[1744366830619,2.7189,1565.8,1565.6,1.27812]
[1744366830825,3.99698,1565.8,1565.7,4.60732]
[1744366832027,3.2078,1566.2,1565.7,4.60732]
[1744366832028,9.91733211,1566.3,1565.8,3.1951]
[1744366832220,1.27783,1566.1,1566.0,1.27786]
[1744366832425,1.27787,1566.0,1565.9,8.3958]
[1744366832736,1.27787,1566.0,1565.9,45.988]
[1744366832931,12.3714,1566.2,1565.9,45.988]
[1744366832932,5.9828,1566.2,1565.9,45.988]
[1744366833126,4.05277,1566.2,1566.0,3.3292]
[1744366833325,1.27779,1566.1,1566.0,3.3292]
[1744366833527,1.27787,1566.0,1565.9,45.988]
[1744366833730,5.9828,1566.2,1565.9,45.988]
[1744366833934,1.27779,1566.1,1566.0,1.27787]
[1744366834229,1.27772,1566.2,1566.1,1.27773]
[1744366834437,5.5889,1566.5,1566.0,3.284]
[1744366834634,5.5889,1566.5,1566.4,1.27755]
[1744366834830,1.27758,1566.4,1566.3,5.316]
[1744366835029,5.5889,1566.5,1566.3,5.32557763]
[1744366835330,3.2078,1566.6,1566.5,1.27747]
[1744366835529,9.91733211,1566.7,1566.6,1.27739]
[1744366835837,11.19463211,1566.7,1566.6,6.59239]
[1744366836027,9.91733211,1566.7,1566.6,5.315]
[1744366836334,9.91733211,1566.7,1566.6,9.80019]
[1744366836638,11.19463211,1566.7,1566.6,5.315]
[1744366836827,22.04663211,1566.7,1566.6,5.315]
[1744366837141,22.04663211,1566.7,1566.3,5.32457763]
[1744366837142,1.27755,1566.4,1566.3,5.32457763]
[1744366837429,1.27755,1566.4,1566.3,6.60215763]
[1744366837624,1.27755,1566.4,1566.3,6.60217763]
[1744366837826,1.27755,1566.4,1566.3,6.60220763]
[1744366838028,1.27755,1566.4,1566.3,5.32457763]
[1744366838227,1.27755,1566.4,1566.3,0.00957763]
[1744366838428,4.47424,1566.5,1566.4,1.27755]
[1744366838631,3.1967,1566.5,1566.4,1.27755]
[1744366838931,2.6335,1566.6,1566.5,1.27747]
[1744366839133,5.8302,1566.6,1566.5,6.59147]
[1744366839334,7.10759,1566.6,1566.5,6.59147]
[1744366839732,1.27712,1567.0,1566.9,1.27713]
[1744366839934,1.27716,1566.9,1566.8,1.27716]
[1744366840135,1.27716,1566.9,1566.8,5.314]
[1744366840639,7.28436,1566.9,1566.8,5.314]
[1744366840837,4.07656,1566.9,1566.8,5.314]
[1744366841435,4.07656,1566.9,1566.8,6.59122]
[1744366842342,4.07656,1566.9,1566.8,5.314]
[1744366842638,1.27745,1566.6,1566.5,1.27746]
[1744366842837,12.59589,1566.8,1566.4,6.2594]
[1744366843033,1.27747,1566.5,1566.4,3.0516]
[1744366843341,3.0211,1566.7,1566.3,0.00957763]
[1744366843534,1.27755,1566.4,1566.3,0.00957763]
[1744366844040,1.27755,1566.4,1566.3,3.21737763]
[1744366844241,1.27755,1566.4,1566.3,4.49496763]
[1744366844640,1.27755,1566.4,1566.3,3.21737763]
[1744366845135,1.27787,1566.0,1565.9,46.112]
[1744366845341,1.27786,1566.1,1566.0,1.27787]
[1744366845642,1.27777,1566.2,1566.1,1.27778]
[1744366845838,1.27779,1566.1,1566.0,4.48561]
[1744366846135,1.27787,1566.0,1565.9,46.112]
[1744366846333,7.29467,1566.0,1565.9,46.12157763]
[1744366846530,0.00948225,1566.2,1566.1,1.27779]
[1744366846843,1.28719225,1566.2,1566.1,1.27779]
[1744366847140,1.27779,1566.1,1566.0,4.48567]
[1744366847341,7.03579,1566.1,1566.0,4.48567]
[1744366847739,1.27787,1566.0,1565.9,50.53348763]
[1744366847950,3.1532,1566.0,1565.9,53.74128763]
[1744366848143,4.43107,1566.0,1565.9,52.46337763]
[1744366848445,3.1532,1566.0,1565.9,50.60733763]
[1744366848645,1.28721225,1566.2,1565.9,49.32937763]
[1744366848646,0.00948225,1566.2,1565.9,49.32937763]
[1744366848836,3.16268225,1566.2,1566.1,1.27779]
[1744366849936,0.00948225,1566.2,1566.1,1.27779]
[1744366850138,0.00948225,1566.2,1566.1,9.48559]